{"text_format":"1","workbook":"xlsx","n_sheets":1,"sheets":["Pressupost Projecte Ac"],"not_rendered":{"charts":0,"images":2,"macros":1,"external_links":0,"defined_names":1,"comments":1,"pivot_tables":0},"unopened":[],"bounds":{"document_bytes":16777216,"sheet_cells":100000,"rows_first":2000,"rows_last":500,"rows_between":2000,"halvings":0,"cell_chars":16384,"cell_head_chars":4096},"cells_cut":0,"cells_raw":0,"read":"whole","date_system":"1900"}

{"sheet":"Pressupost Projecte Ac","index":0,"n_rows":156,"n_cols":6,"rows_kept":156,"cut":false,"hidden":false,"merged":[[2,2,3,5],[159,2,159,3],[55,2,55,3],[87,2,87,3],[127,2,127,3],[149,2,149,3]]}
[null,null,null,null,null,"Document bàsic 3"]
[null,null,null,null,null,"Àmbit temàtic \"A\": Creació i Consolidació"]
["Subvencions de l'Ajuntament de Barcelona per a",null,"Modalitat \"c\": Formació: Innovació i formació per a la millora de la gestió i l'obertura de noves línies de negoci"]
["la promoció i reforç de l'economia social i solidària 2020"]
[null,null,null,null,null,"Cal omplir les cel·les en blanc i si escau afegir les files necessàries"]
[null,null,null,null,null,"Abans d'omplir, consultar anotacions a peu de pàgina"]
[]
["DADES BÀSIQUES"]
["Nom de la persona jurídica",null,null,null,null,"  "]
["NIF de la persona jurídica"]
["Nom del projecte subvencionable"]
["Import total del projecte subvencionable"]
["Import imputable a la subvenció municipal"]
["% de l’import sol·licitat a la subvenció municipal a bescanviar en REC (Recurs Econòmic Ciutadà) "]
["Import de l'aportació / Cofinançament de l'entitat",{"$f":"B12-B13","v":0}]
["% de l'import sol·licitat respecte el total del projecte subvencionable",{"$f":"B13/B12","v":{"$error":"#DIV/0!"}}]
["Data inici del projecte subvencionat (dd/mm/aaaa)"]
["Data fi del projecte subvencionat (dd/mm/aaaa)"]
[]
["PREVISIÓ DE DESPESES DEL PROJECTE SUBVENCIONABLE"]
["c1. Formació grupal per a persones sòcies, treballadores i voluntàries de l’entitat."]
[]
["PARTIDES","Import total del projecte","Import imputable a la subvenció municipal","Import de l'aportació / Cofinançament de l'entitat"]
["1.  Honoraris dels formadors/es externs. ",{"$f":"SUM(DespesesProjecteAb1[[#This Row],[Import imputable a la subvenció municipal]],DespesesProjecteAb1[[#This Row],[Import de l''aportació / Cofinançament de l''entitat]])","v":0},{"$f":"SUM(C25:C27)","v":0},{"$f":"SUM(D25:D27)","v":0}]
[]
[]
[]
["2.  Cost salarial de les persones participants (Max 40%) ",{"$f":"SUM(DespesesProjecteAb1[[#This Row],[Import imputable a la subvenció municipal]],DespesesProjecteAb1[[#This Row],[Import de l''aportació / Cofinançament de l''entitat]])","v":0},{"$f":"SUM(C29:C31)","v":0},{"$f":"SUM(D29:D31)","v":0}]
[]
[]
[]
["3.  Lloguer de béns immobles directament vinculats al projecte subvencionable.",{"$f":"SUM(DespesesProjecteAb1[[#This Row],[Import imputable a la subvenció municipal]],DespesesProjecteAb1[[#This Row],[Import de l''aportació / Cofinançament de l''entitat]])","v":0},{"$f":"SUM(C33:C35)","v":0},{"$f":"SUM(D33:D35)","v":0}]
[]
[]
[]
["4.  Adquisició de materials i béns consumibles íntegrament imputables al projecte subvencionable.",{"$f":"SUM(DespesesProjecteAb1[[#This Row],[Import imputable a la subvenció municipal]],DespesesProjecteAb1[[#This Row],[Import de l''aportació / Cofinançament de l''entitat]])","v":0},{"$f":"SUM(C37:C39)","v":0},{"$f":"SUM(D37:D39)","v":0}]
[]
[]
[]
["5.  Transport – missatgeria imputables al projecte.",{"$f":"SUM(DespesesProjecteAb1[[#This Row],[Import imputable a la subvenció municipal]],DespesesProjecteAb1[[#This Row],[Import de l''aportació / Cofinançament de l''entitat]])","v":0},{"$f":"SUM(C41:C43)","v":0},{"$f":"SUM(D41:D43)","v":0}]
[]
[]
[]
["6.  Assegurances",{"$f":"SUM(DespesesProjecteAb1[[#This Row],[Import imputable a la subvenció municipal]],DespesesProjecteAb1[[#This Row],[Import de l''aportació / Cofinançament de l''entitat]])","v":0},{"$f":"SUM(C45:C47)","v":0},{"$f":"SUM(D45:D47)","v":0}]
[]
[]
[]
["7.  Viatges i desplaçaments imputables a les activitats del projecte subvencionable. (Màx. 10% de l'import de la subvenció)",{"$f":"SUM(DespesesProjecteAb1[[#This Row],[Import imputable a la subvenció municipal]],DespesesProjecteAb1[[#This Row],[Import de l''aportació / Cofinançament de l''entitat]])","v":0},{"$f":"SUM(C49:C51)","v":0},{"$f":"SUM(D49:D51)","v":0}]
[]
[]
[]
["TOTAL DE DESPESES PREVISTES",{"$f":"SUM(B24,B28,B32,B36,B40,B44,B48)","v":0},{"$f":"SUM(C24,C28,C32,C36,C40,C44,C48)","v":0},0]
[]
["Barcelona, "]
[]
["Segell de l'entitat ",null,"Signatura del President/a o persona que disposa de poders o autorització per fer-ho."]
[]
["1.  La quantia de la subvenció atorgada no superarà el 80% de la despesa total del projecte a subvencionar. "]
["2.  Les sol•licituds poden contenir una proposta de projecte de formació que contingui les tres submodalitats (Ac1, Ac2 i Ac3), dues d’elles o bé tant sols una submodalitat. "]
["3.  En qualsevol cas, l’import màxim de subvenció, tant si la sol•licitud conté una, dos o tres submodalitats, serà de 4.500 €. "]
["4.  Les despeses de viatges i desplaçament imputables a les activitats del projecte subvencionable es limiten a un màxim d'un 10% de l'import de la subvenció."]
["5.  En el cas que la sol·licitud presentada sobrepassi l’import màxim, es considerarà com a import sol·licitat el màxim de l'establert a la convocatòria."]
["6.  No són imputables en aquesta submodalitat cap despesa indirecta de les detallades en l’apartat 13.3 de les bases reguladores."]
[]
[]
[]
[]
["PREVISIÓ DE DESPESES DEL PROJECTE SUBVENCIONABLE"]
["c2. Despeses de matriculació del personal de l’entitat en accions formatives externes. "]
[]
["PARTIDES","Import total del projecte","Import imputable a la subvenció municipal","Import de l'aportació / Cofinançament de l'entitat"]
["Despeses de matriculació en accions formatives externes",{"$f":"SUM(DespesesProjecteAb2[[#This Row],[Import imputable a la subvenció municipal]],DespesesProjecteAb2[[#This Row],[Import de l''aportació / Cofinançament de l''entitat]])","v":0},{"$f":"SUM(C73:C83)","v":0},{"$f":"SUM(D73:D83)","v":0}]
[]
[]
[]
[]
[]
[]
[]
[]
[]
[]
[]
["TOTAL DE DESPESES PREVISTES",{"$f":"SUM(B72)","v":0},{"$f":"SUM(C72)","v":0},{"$f":"SUM(D72)","v":0}]
[]
["Barcelona, "]
[]
["Segell de l'entitat ",null,"Signatura del President/a o persona que disposa de poders o autorització per fer-ho."]
["1.  La quantia de la subvenció atorgada no superarà el 80% de la despesa total del projecte a subvencionar. "]
["2.  Les sol•licituds poden contenir una proposta de projecte de formació que contingui les tres submodalitats (Ac1, Ac2 i Ac3), dues d’elles o bé tant sols una submodalitat. "]
["3.  En qualsevol cas, l’import màxim de subvenció, tant si la sol•licitud conté una, dos o tres submodalitats, serà de 4.500 €. "]
["4.  En el cas que la sol·licitud presentada sobrepassi l’import màxim, es considerarà com a import sol·licitat el màxim de l'establert a la convocatòria."]
["5.  No són imputables en aquesta submodalitat cap despesa indirecta de les detallades en l’apartat 13.3 de les bases reguladores."]
["6.  La formació a subvencionar ha de tenir una durada mínima de 150 hores i/o un cost mínim de 300 € per a cada participant."]
[]
["PREVISIÓ DE DESPESES DEL PROJECTE SUBVENCIONABLE"]
["c3. Pràctiques de les persones estudiants universitàries i de formació dual de FP en entitats i empreses de l'ESS"]
[]
["PARTIDES","Import total del projecte","Import imputable a la subvenció municipal","Import de l'aportació / Cofinançament de l'entitat"]
["1.  Despeses d’ajut econòmic –beca- de l’estudiant en pràctiques",{"$f":"SUM(DespesesProjecteAb14[[#This Row],[Import imputable a la subvenció municipal]],DespesesProjecteAb14[[#This Row],[Import de l''aportació / Cofinançament de l''entitat]])","v":0},{"$f":"SUM(C101:C105)","v":0},{"$f":"SUM(D101:D105)","v":0}]
[]
[]
[]
[]
[]
["2.  Despeses de seguretat social de l’alumne en pràctiques",{"$f":"SUM(DespesesProjecteAb14[[#This Row],[Import imputable a la subvenció municipal]],DespesesProjecteAb14[[#This Row],[Import de l''aportació / Cofinançament de l''entitat]])","v":0},{"$f":"SUM(C107:C111)","v":0},{"$f":"SUM(D107:D111)","v":0}]
[]
[]
[]
[]
[]
["3.  Despeses del contracte laboral de la formació dual, modalitat contracte de formació i aprenentatge",{"$f":"SUM(DespesesProjecteAb14[[#This Row],[Import imputable a la subvenció municipal]],DespesesProjecteAb14[[#This Row],[Import de l''aportació / Cofinançament de l''entitat]])","v":0},{"$f":"SUM(C113:C117)","v":0},{"$f":"SUM(D113:D117)","v":0}]
[]
[]
[]
[]
[]
["4.  Despeses de gestió associades a la tramitació del Conveni de Cooperació Educativa o l’Acord Formatiu de Col·laboració",{"$f":"SUM(DespesesProjecteAb14[[#This Row],[Import imputable a la subvenció municipal]],DespesesProjecteAb14[[#This Row],[Import de l''aportació / Cofinançament de l''entitat]])","v":0},{"$f":"SUM(C119:C121)","v":0},{"$f":"SUM(D119:D121)","v":0}]
[]
[]
[]
[]
[]
["TOTAL DE DESPESES PREVISTES",{"$f":"B118+B112+B106+B100","v":0},{"$f":"C118+C112+C106+C100","v":0},0]
[]
["Barcelona, "]
[]
["Segell de l'entitat ",null,"Signatura del President/a o persona que disposa de poders o autorització per fer-ho."]
[]
["1.  La quantia de la subvenció atorgada no superarà el 80% de la despesa total del projecte a subvencionar. "]
["2.  Les sol•licituds poden contenir una proposta de projecte de formació que contingui les tres submodalitats (Ac1, Ac2 i Ac3), dues d’elles o bé tant sols una submodalitat. "]
["3.  En qualsevol cas, l’import màxim de subvenció, tant si la sol•licitud conté una, dos o tres submodalitats, serà de 4.500 €. "]
["4.  L’import màxim permès per la modalitat Ac3 (pràctiques de persones estudiants) és de 3.500 €"]
["5.  En el cas que la sol·licitud presentada sobrepassi l’import màxim, es considerarà com a import sol·licitat el màxim de l'establert a la convocatòria."]
["6.  No són imputables en aquesta submodalitat cap despesa indirecta de les detallades en l’apartat 13.3 de les bases reguladores."]
["7.  Els/les alumnes beneficiaris/àries han de ser persones residents a la ciutat o matriculats/des en un universitats o centres de formació de la ciutat"]
["8.  El programa de pràctiques dels alumnes ha de ser d’una durada mínima de 400 hores. "]
["9.  Només pot presentar-se una sol·licitud per un lloc de pràctiques per entitat sol·licitant. "]
["10.  Caldrà donar d’alta a l’alumne/a en la seguretat social com a alumne/a en pràctiques "]
["11.  El cost brut hora de la remuneració de l’alumne/a en pràctiques universitàries no podrá ser inferior a de 6€/hora "]
[]
["PREVISIÓ DE DESPESES DEL PROJECTE SUBVENCIONABLE (c1 + c2 + c3) "]
[]
[]
["PARTIDES","Import total del projecte","Import imputable a la subvenció municipal","Import de l'aportació / Cofinançament de l'entitat"]
["TOTAL DE DESPESES PREVISTES",{"$f":"SUM(B52,B84,B124)","v":0},{"$f":"SUM(C52,C84,C124)","v":0},{"$f":"SUM(D52,D84,D124)","v":0}]
[]
["Barcelona, "]
[]
["Segell de l'entitat ",null,"Signatura del President/a o persona que disposa de poders o autorització per fer-ho."]
[]
["1.  La quantia de la subvenció atorgada no superarà el 80% de la despesa total del projecte a subvencionar. "]
["2.  Les sol•licituds poden contenir una proposta de projecte de formació que contingui les tres submodalitats (Ac1, Ac2 i Ac3), dues d’elles o bé tant sols una submodalitat."]
["3.  En qualsevol cas, l’import màxim de subvenció, tant si la sol•licitud conté una, dos o tres submodalitats, serà de 4.500 €."]
["4.  L’import màxim permès per la modalitat Ac3 (pràctiques de persones estudiants) és de 3.500 €"]
["5. En el cas que la sol·licitud presentada sobrepassi l’import màxim, es considerarà com a import sol·licitat el màxim de l'establert a la convocatòria."]